Workbook

Sheet 심의안건
A1: 2018년도 제9회 예천군 보조금심의위원회 대상자선정심의 조서
K2: (단위 : 천원)
A3: 부서명 | B3: 보 조 사 업 자 | C3: 보 조 사 업 명 | D3: 과목명 | E3: 사 업 내 용 | F3: 2016년 지원액 | G3: 계 | H3: 보조금 | I3: 자부담 | J3: 1차(해당부서) | K3: 2차(예산부서) | L3: 3차(위원회)
B4: 계 | C4: =SUBTOTAL(103,C5:C31)&"건" -> 25건 | G4: =G5+G21 -> 205,256 | H4: =H5+H21 -> 100,419 | I4: 104,837 | J4: 100,419 | K4: 100,419 | L4: 100,419
A5: 농정과 소계 | C5: =SUBTOTAL(103,C6:C20)&"건" -> 15건 | F5: =SUBTOTAL(9,F6:F6) -> 375,600 | G5: =SUM(G6:G20) -> 177,218 | H5: =SUM(H6:H20) -> 88,609 | I5: 88,609 | J5: 88,609 | K5: 88,609 | L5: 88,609
A6: 농정과 | B6: 유천면 화전길 21-90 김경환 외 4명 (대상자내역 별지) | C6: 중소형농기계 지원 | D6: 민간자본사업보조 | E6: 2,000,000원 * 5대 * 50% | F6: 375,600 | G6: 10,000 | H6: 5,000 | I6: 5,000 | J6: 5,000 | K6: 5,000 | L6: 5,000
A7: 농정과 | B7: 대구경북능금농협 예천경제사업장 이정욱(예천읍 시장로 163) | C7: 우수 농특산물 포장재 개선 지원사업 | D7: 민간자본사업보조 (이전재원) | E7: 사과포장재 2,000원 * 20,000개 * 50% | G7: =SUM(H7:I7) -> 40,000 | H7: 20,000 | I7: 20,000 | J7: 20,000 | K7: 20,000 | L7: 20,000
A8: 농정과 | B8: 유천면 가동1길 23 강동조 | C8: 소득작목육성지원사업 (다겹보온커튼) | E8: 17,000,000원 * 1식 * 50% | G8: 17,000 | H8: 8,500 | I8: 8,500 | J8: =H8 -> 8,500 | K8: 8,500 | L8: 8,500
A9: 농정과 | B9: 유천면 가동1길 23 강동조 | C9: 소득작목육성지원사업 (장기성PO필름) | E9: 16,000,000원 * 1식 * 50% | G9: 16,000 | H9: 8,000 | I9: 8,000 | J9: 8,000 | K9: 8,000 | L9: 8,000
A10: 농정과 | B10: 개포면 송담길 42-22 남수진 | C10: 소득작목육성지원사업 (하우스자동개폐기) | E10: 800,000원 * 4동 * 50% | G10: 3,200 | H10: 1,600 | I10: 1,600 | J10: 1,600 | K10: 1,600 | L10: 1,600
A11: 농정과 | B11: 호명면 갈음밭길 80-3 권태진 | C11: 소득작목육성지원사업 (다겹보온커튼) | E11: 11,000원 * 1,000㎡ * 50% | G11: 11,000 | H11: 5,500 | I11: 5,500 | J11: 5,500 | K11: 5,500 | L11: 5,500
A12: 농정과 | B12: 은풍면 내동길 44 전우탁 | C12: 소득작목육성지원사업 (보행전동운반차) | E12: 4,000,000원 * 1대 * 50% | G12: 4,000 | H12: 2,000 | I12: 2,000 | J12: 2,000 | K12: 2,000 | L12: 2,000
A13: 농정과 | B13: 풍양면 낙상1리 조현우 | C13: 소득작목육성지원사업 (양파 재배농가 기계화 일괄시스템) | E13: 2,800,000원 * 1식 * 50% | G13: 2,800 | H13: 1,400 | I13: 1,400 | J13: 1,400 | K13: 1,400 | L13: 1,400
A14: 농정과 | B14: 보문면 산성길 530 하창희 | C14: 원예산업육성지원사업 (관수시설) | E14: 1,118,000원 * 1식 * 50% | G14: 1,118 | H14: 559 | I14: 559 | J14: 559 | K14: 559 | L14: 559
A15: 농정과 | B15: 풍양면 우망길 491-29 이노진팜 | C15: 원예산업육성지원사업 (새싹삼 경사면 재배사업) | E15: 24,00,000원 * 1식 * 50% | G15: 24,000 | H15: 12,000 | I15: 12,000 | J15: 12,000 | K15: 12,000 | L15: 12,000
A16: 농정과 | B16: 용문면 복천길 16-8 착한농부 | C16: 원예산업육성지원사업 (타전기) | E16: 11,000,000원 * 1대 * 50% | G16: 11,000 | H16: 5,500 | I16: 5,500 | J16: 5,500 | K16: 5,500 | L16: 5,500
A17: 농정과 | B17: 유천면 가동1길 23 강동조 | C17: 민속채소양채류기반확충사업 (다겹보온커튼) | D17: 민간자본사업보조 (이전재원) | E17: 20,000,000원 * 1식 * 50% | G17: 20,000 | H17: 10,000 | I17: 10,000 | J17: 10,000 | K17: 10,000 | L17: 10,000
A18: 농정과 | B18: 감천면 도평길 48 김홍년 | C18: 인삼생약육성지원사업 (해가림시설) | E18: 4,500,000원 * 1식 * 50% | G18: 4,500 | H18: 2,250 | I18: 2,250 | J18: 2,250 | K18: 2,250 | L18: 2,250
A19: 농정과 | B19: 은풍면 도효자로 1179-18 최명종 | C19: 2018년 과수전동가위 지원사업 | D19: 민간자본사업보조 | E19: 1,600,000원 * 1대 * 50% | F19: 24,000 | G19: 1,600 | H19: 800 | I19: 800 | J19: 800 | K19: 800 | L19: 800
A20: 농정과 | B20: 풍양면 하풍길 12-28 진홍기 | C20: 벼 육묘 녹화장 설치 지원 | D20: 민간자본보조 | E20: 11,000,000원 * 1개소 * 50% | F20: 0 | G20: =SUM(H20:I20) -> 11,000 | H20: 5,500 | I20: 5,500 | J20: 5,500 | K20: 5,500 | L20: 5,500
A21: 산림축산과 소계 | C21: =SUBTOTAL(103,C22:C32)&"건" -> 10건 | F21: =SUBTOTAL(9,F22:F32) -> 0 | G21: =SUBTOTAL(9,G22:G31) -> 28,038 | H21: =SUBTOTAL(9,H22:H31) -> 11,810 | I21: 16,228 | J21: 11,810 | K21: 11,810 | L21: 11,810
A22: 산림축산과 | B22: 지보면 지포길 101-5 정복수 외 3명 (대상자내역 별지) | C22: 축사 환기시설(송풍기) 지원사업 | D22: 민간자본사업보조 | E22: 300,000원 * 21대 * 60% | G22: =H22+I22 -> 6,300 | H22: 3,780 | I22: 2,520 | J22: 3,780 | K22: 3,780 | L22: 3,780
A23: 산림축산과 | B23: 용문면 우망골길 102-4 심헌보 | C23: 한우보정용 개체잠금장치 지원사업 | D23: 민간자본사업보조 | E23: 60,000원 * 24두 * 50% | G23: =H23+I23 -> 1,440 | H23: 720 | I23: 720 | J23: =H23 -> 720 | K23: 720 | L23: =J23 -> 720
A24: 산림축산과 | B24: 호명면 봉호로 4184-35 박경범 | C24: 한우 미네랄블럭 지원사업 | D24: 민간자본사업보조 | E24: 10,000원 * 5개 * 60% | G24: 50 | H24: 30 | I24: 20 | J24: =H24 -> 30 | K24: 30 | L24: =J24 -> 30
A25: 산림축산과 | B25: 예천읍 석정길 195 안점숙 | C25: 면역강화용사료첨가제 지원사업 | D25: 민간자본사업보조 | E25: 30,000원 * 10포 *70% | G25: 300 | H25: 210 | I25: 90 | J25: =H25 -> 210 | K25: 210 | L25: =J25 -> 210
A26: 산림축산과 | B26: 풍양면 낙상1길 27-3 박향숙 | C26: 어린송아지용양질조사료 지원사업 | D26: 민간자본사업보조 | E26: 600원 * 3,000kg * 30% | G26: 1,800 | H26: 540 | I26: 1,260 | J26: =H26 -> 540 | K26: 540 | L26: =J26 -> 540
A27: 산림축산과 | B27: 호명면 양지로 55 성우진 외 1명 (대상자내역 별지) | C27: 곤포사일리지제조비닐랩 지원사업 | D27: 민간자본사업보조 | E27: 100,000원 * 138롤 * 30% | G27: 13,800 | H27: 4,140 | I27: 9,660 | J27: =H27 -> 4,140 | K27: 4,140 | L27: =J27 -> 4,140
A28: 산림축산과 | B28: 예천읍 군청길 43-19 김현숙 외 1명 (대상자내역 별지) | C28: 한우 기생충 구제사업 | D28: 민간자본사업보조 | E28: 7,000원 * 64두 * 50% | G28: 448 | H28: 224 | I28: 224 | J28: 224 | K28: 224 | L28: 224
A29: 산림축산과 | B29: 은풍면 어림성길 115 엄장현 | C29: 축산농장 연막소독기 지원사업 | D29: 민간자본사업보조 | E29: 600,000원 * 1대 * 70% | G29: 600 | H29: 420 | I29: 180 | J29: 420 | K29: 420 | L29: 420
A30: 산림축산과 | B30: 지보면 마전1길 42 현철기 외 1명 (대상자내역 별지) | C30: 깨끗한 축산환경 지원 (파리구제제 구입지원) | D30: 민간자본사업보조 | E30: 12,000원 * 40포 * 70% | G30: 480 | H30: 336 | I30: 144 | J30: 336 | K30: 336 | L30: 336
A31: 산림축산과 | B31: 예천읍 석정길 195 안점숙 외 5명 (대상자내역 별지) | C31: 축산분뇨처리용 톱밥지원 | D31: 민간자본사업보조 | E31: 3,000원 * 940포 * 50% | G31: 2,820 | H31: 1,410 | I31: 1,410 | J31: 1,410 | K31: 1,410 | L31: 1,410

Sheet 대상자별지내역
A1: 2018년도 제9회 예천군 보조금심의위원회 대상자내역 별지 조서
L2: (단위 : 천원)
A3: 부서명 | B3: 보 조 사 업 자 | D3: 보 조 사 업 명 | E3: 과목명 | F3: 사 업 내 용 | G3: 2017년 지원액 | H3: 계 | I3: 보조금 | J3: 자부담 | K3: 1차(해당부서) | L3: 2차(예산부서) | M3: 3차(위원회)
B4: 주소 | C4: 성명
A5: 소계 | D5: =SUBTOTAL(103,D7:D10)&"건" -> 4건 | G5: =SUBTOTAL(9,G8:G8) -> 0 | H5: =SUM(H6:H10) -> 10,000 | I5: =SUM(I6:I10) -> 5,000 | J5: 5,000 | K5: 5,000 | L5: 5,000 | M5: 5,000
A6: 농정과 | B6: 개포면 우감2길 5-1 | C6: 김숙희 | D6: 중소형농기계 지원사업 | E6: 민간자본사업보조 | F6: 2,000,000원 * 1대 * 50% | H6: 2,000 | I6: 1,000 | J6: 1,000 | K6: 1,000 | L6: 1,000 | M6: 1,000
A7: 농정과 | B7: 유천면 화전길 21-90 | C7: 김경환 | D7: 중소형농기계 지원사업 | E7: 민간자본사업보조 | F7: 2,000,000원 * 1대 * 50% | H7: 2,000 | I7: 1,000 | J7: 1,000 | K7: 1,000 | L7: 1,000 | M7: 1,000
A8: 농정과 | B8: 감천면 농바우길 28 | C8: 김상년 | D8: 중소형농기계 지원사업 | E8: 민간자본사업보조 | F8: 2,000,000원 * 1대 * 50% | H8: 2,000 | I8: 1,000 | J8: 1,000 | K8: 1,000 | L8: 1,000 | M8: 1,000
A9: 농정과 | B9: 감천면 포1길 65 | C9: 권철영 | D9: 중소형농기계 지원사업 | E9: 민간자본사업보조 | F9: 2,000,000원 * 1대 * 50% | H9: 2,000 | I9: 1,000 | J9: 1,000 | K9: 1,000 | L9: 1,000 | M9: 1,000
A10: 농정과 | B10: 용궁면 용개로 493 | C10: 서석조 | D10: 중소형농기계 지원사업 | E10: 민간자본사업보조 | F10: 2,000,000원 * 1대 * 50% | H10: 2,000 | I10: 1,000 | J10: 1,000 | K10: 1,000 | L10: 1,000 | M10: 1,000
A11: 소계 | D11: =SUBTOTAL(103,D12:D101)&"건" -> 21건 | G11: =SUBTOTAL(9,G12:G24) -> 0 | H11: =SUBTOTAL(9,H12:H32) -> 28,038 | I11: =SUBTOTAL(9,I12:I32) -> 11,810 | J11: 16,228 | K11: 11,810 | L11: =SUBTOTAL(9,L12:L32) -> 11,810 | M11: =SUBTOTAL(9,M12:M32) -> 11,810
A12: 산림축산과 | B12: 지보면 지포길 101-5 | C12: 정복수 | D12: 축사 환기시설(송풍기) 지원사업 | E12: 민간자본사업보조 | F12: 300,000원 * 5대 * 60% | H12: =I12+J12 -> 1,500 | I12: 900 | J12: 600 | K12: =I12 -> 900 | L12: 900 | M12: 900
A13: 산림축산과 | B13: 개포면 동소리길 202-167 | C13: 변우성 | D13: 축사 환기시설(송풍기) 지원사업 | E13: 민간자본사업보조 | F13: 300,000원 * 4대 * 60% | H13: =I13+J13 -> 1,200 | I13: 720 | J13: 480 | K13: =I13 -> 720 | L13: 720 | M13: 720
A14: 산림축산과 | B14: 개포면 동소리길 190 | C14: 이상문 | D14: 축사 환기시설(송풍기) 지원사업 | E14: 민간자본사업보조 | F14: 300,000원 * 3대 * 60% | H14: 900 | I14: 540 | J14: 360 | K14: 540 | L14: 540 | M14: 540
A15: 산림축산과 | B15: 호명면 한어길 288 | C15: 윤승휘 | D15: 축사 환기시설(송풍기) 지원사업 | E15: 민간자본사업보조 | F15: 300,000원 * 9대 * 60% | H15: 2,700 | I15: 1,620 | J15: 1,080 | K15: 1,620 | L15: 1,620 | M15: 1,620
A16: 산림축산과 | B16: 용문면 우망골길 102-4 | C16: 심헌보 | D16: 한우보정용 개체잠금장치 지원사업 | E16: 민간자본사업보조 | F16: 60,000원 * 24두 * 50% | H16: 1,440 | I16: 720 | J16: 720 | K16: 720 | L16: 720 | M16: 720
A17: 산림축산과 | B17: 호명면 봉호로 4184-35 | C17: 박경범 | D17: 한우 미네랄블럭 지원사업 | E17: 민간자본사업보조 | F17: 10,000원 * 5개 * 60% | H17: 50 | I17: 30 | J17: 20 | K17: 30 | L17: 30 | M17: 30
A18: 산림축산과 | B18: 예천읍 석정길 195 | C18: 안점숙 | D18: 면역강화용사료첨가제 지원사업 | E18: 민간자본사업보조 | F18: 30,000원 * 10포 *70% | H18: =SUM(I18:J18) -> 300 | I18: 210 | J18: 90 | K18: 210 | L18: 210 | M18: 210
A19: 산림축산과 | B19: 풍양면 낙상1길 27-3 | C19: 박향숙 | D19: 어린송아지용양질조사료 지원사업 | E19: 민간자본사업보조 | F19: 600원 * 3,000kg * 30% | H19: =SUM(I19:J19) -> 1,800 | I19: 540 | J19: 1,260 | K19: 540 | L19: 540 | M19: 540
A20: 산림축산과 | B20: 호명면 양지로 55 | C20: 성우진 | D20: 곤포사일리지제조비닐랩지원사업 | E20: 민간자본사업보조 | F20: 100,000원 * 57롤 * 30% | H20: 5,700 | I20: 1,710 | J20: 3,990 | K20: 1,710 | L20: 1,710 | M20: 1,710
A21: 산림축산과 | B21: 풍양면 낙상1길 58-13 | C21: 홍상진 | D21: 곤포사일리지제조비닐랩지원사업 | E21: 민간자본사업보조 | F21: 100,000원 * 81롤 * 30% | H21: 8,100 | I21: 2,430 | J21: 5,670 | K21: 2,430 | L21: 2,430 | M21: 2,430
A22: 산림축산과 | B22: 예천읍 군청길 43-19 | C22: 김현숙 | D22: 한우기생충 구제사업 | E22: 민간자본사업보조 | F22: 7,000원 * 54두 * 50% | H22: 378 | I22: 189 | J22: 189 | K22: 189 | L22: 189 | M22: 189
A23: 산림축산과 | B23: 감천면 산동길 111 | C23: 조승원 | D23: 한우기생충 구제사업 | E23: 민간자본사업보조 | F23: 7,000원 * 10두 * 50% | H23: 70 | I23: 35 | J23: 35 | K23: 35 | L23: 35 | M23: 35
A24: 산림축산과 | B24: 지보면 마전1길 42 | C24: 현철기 | D24: 깨끗한 축산환경 지원 (파리구제제 구입지원) | E24: 민간자본사업보조 | F24: 12,000원 * 25포 * 70% | H24: 300 | I24: 210 | J24: 90 | K24: 210 | L24: 210 | M24: 210
A25: 산림축산과 | B25: 지보면 매화길 38 | C25: 정을영 | D25: 깨끗한 축산환경 지원 (파리구제제 구입지원) | E25: 민간자본사업보조 | F25: 12,000원 * 15포 * 70% | H25: 180 | I25: 126 | J25: 54 | K25: 126 | L25: 126 | M25: 126
A26: 산림축산과 | B26: 예천읍 석정길 195 | C26: 안점숙 | D26: 축산분뇨처리용 톱밥지원 | E26: 민간자본사업보조 | F26: 3,000원 * 100포 * 50% | H26: 300 | I26: 150 | J26: 150 | K26: 150 | L26: 150 | M26: 150
A27: 산림축산과 | B27: 감천면 산동길 111 | C27: 조승원 | D27: 축산분뇨처리용 톱밥지원 | E27: 민간자본사업보조 | F27: 3,000원 * 320포 * 50% | H27: =3*320 -> 960 | I27: =H27*0.5 -> 480 | J27: =H27*0.5 -> 480 | K27: =H27*0.5 -> 480 | L27: 480 | M27: 480
A28: 산림축산과 | B28: 감천면 충효로 1051-87 | C28: 이영순 | D28: 축산분뇨처리용 톱밥지원 | E28: 민간자본사업보조 | F28: 3,000원 * 180포 * 50% | H28: =3*180 -> 540 | I28: =H28*0.5 -> 270 | J28: =H28*0.5 -> 270 | K28: =H28*0.5 -> 270 | L28: 270 | M28: 270
A29: 산림축산과 | B29: 감천면 유동길 96-8 | C29: 전종수 | D29: 축산분뇨처리용 톱밥지원 | E29: 민간자본사업보조 | F29: 3,000원 * 80포 * 50% | H29: =3*80 -> 240 | I29: 120 | J29: 120 | K29: 120 | L29: 120 | M29: 120
A30: 산림축산과 | B30: 감천면 현내1길 26 | C30: 장성모 | D30: 축산분뇨처리용 톱밥지원 | E30: 민간자본사업보조 | F30: 3,000원 * 40포 * 50% | H30: =3*40 -> 120 | I30: 60 | J30: 60 | K30: 60 | L30: 60 | M30: 60
A31: 산림축산과 | B31: 감천면 현내1길 34 | C31: 송창호 | D31: 축산분뇨처리용 톱밥지원 | E31: 민간자본사업보조 | F31: 3,000원 * 220포 * 50% | H31: =3*220 -> 660 | I31: 330 | J31: 330 | K31: 330 | L31: 330 | M31: 330
A32: 산림축산과 | B32: 은풍면 어림성길 115 엄장현 | C32: 엄장현 | D32: 축산농장 연막소독기 지원사업 | E32: 민간자본사업보조 | F32: 600,000원 * 1대 * 70% | H32: 600 | I32: 420 | J32: 180 | K32: 420 | L32: 420 | M32: 420
